bitfinex/quotes_ETHUSD_20250508
["timestamp","ask_amount","ask_price","bid_price","bid_amount"]
[1746673360030,5.42988951,1841.7,1841.3,6.20042512]
[1746673360406,0.30405199,1841.6,1841.3,6.20042512]
[1746673360927,0.30405199,1841.6,1841.3,1.93274373]
[1746673361087,0.30405199,1841.6,1841.4,5.43052693]
[1746673361705,0.30405199,1841.6,1841.5,0.8112]
[1746673361893,5.42964537,1841.8,1841.5,0.8112]
[1746673362427,5.708,1841.9,1841.5,6.24150542]
[1746673362637,0.30408484,1841.8,1841.5,6.24150542]
[1746673362796,0.30408484,1841.8,1841.5,6.29580291]
[1746673362997,0.30408484,1841.8,1841.5,0.86549749]
[1746673363209,0.30408484,1841.8,1841.5,0.8112]
[1746673363611,10.85877941,1841.9,1841.5,6.24144178]
[1746673363810,5.42933156,1841.9,1841.5,6.24144178]
[1746673364013,5.42933156,1841.9,1841.5,6.29573927]
[1746673364547,5.42950533,1841.8,1841.5,0.86549749]
[1746673364736,5.42937114,1841.9,1841.5,6.24145135]
[1746673365062,5.42937114,1841.9,1841.5,6.29574884]
[1746673365209,0.30412174,1841.8,1841.5,6.24145135]
[1746673365833,0.30412174,1841.8,1841.6,6.18084457]
[1746673366007,0.30412174,1841.8,1841.7,5.42976597]
[1746673366226,0.40685029,1842.1,1841.8,5.42936557]
[1746673366545,11.68155104,1842.2,1841.7,5.42958044]
[1746673366745,5.42869271,1842.1,1841.7,5.42958044]
[1746673367113,0.30402972,1842.0,1841.7,5.42958044]
[1746673367652,0.30402972,1842.0,1841.7,5.48387351]
[1746673367949,0.30402972,1842.0,1841.6,6.18091217]
[1746673368251,5.42964773,1841.8,1841.6,0.751]
[1746673368451,6.00229604,1842.0,1841.6,6.1809548]
[1746673368813,0.30399923,1841.9,1841.6,6.1809548]
[1746673369122,5.73329437,1841.9,1841.6,0.751]
[1746673369644,5.42929514,1841.9,1841.6,0.751]
[1746673370150,5.42903031,1842.0,1841.6,6.1810501]
[1746673370151,5.4290457,1842.0,1841.6,6.1810501]
[1746673370341,5.42918303,1841.9,1841.6,0.751]
[1746673371252,0.30403234,1841.8,1841.6,0.751]
[1746673371910,0.30403234,1841.8,1841.6,6.79906937]
[1746673372117,0.30403234,1841.8,1841.7,0.05429187]
[1746673372617,0.30403234,1841.8,1841.7,5.48405784]
[1746673372953,6.86846969,1843.7,1842.1,0.8017]
[1746673372954,5.42753639,1842.5,1842.1,0.8017]
[1746673373163,6.54059003,1842.5,1842.1,0.85597852]
[1746673373355,5.42210721,1842.5,1842.1,6.28443174]
[1746673373871,0.30409904,1842.4,1842.1,6.28443174]
[1746673374232,5.73182399,1842.4,1842.1,0.8017]
[1746673374632,5.42829225,1842.2,1842.1,0.8017]
[1746673375180,5.4284431,1842.2,1841.9,0.812]
[1746673375333,6.00169411,1842.2,1841.9,0.812]
[1746673375538,5.42888165,1842.0,1841.9,0.812]
[1746673376457,5.73298069,1842.0,1841.9,0.812]
[1746673376661,5.73298069,1842.0,1841.6,6.04790158]
[1746673376981,5.73298069,1842.0,1841.7,0.8164]
[1746673377132,11.1621136,1842.0,1841.7,0.8164]
[1746673377471,5.73298069,1842.0,1841.7,0.8164]
[1746673377693,0.30409904,1841.9,1841.7,6.24614229]
[1746673377972,0.30409904,1841.9,1841.7,2.04580439]
[1746673378379,0.30409904,1841.9,1841.7,0.8164]
[1746673378565,0.30409904,1841.9,1841.7,6.24616328]
[1746673379080,0.30409904,1841.9,1841.7,0.8164]
[1746673379294,5.42918818,1841.9,1841.7,0.8164]
[1746673379449,5.42888567,1842.0,1841.7,0.8164]
[1746673380260,5.42888567,1842.0,1841.7,6.87077721]
[1746673380480,0.30467223,1841.9,1841.7,1.44102459]
[1746673381145,0.30467223,1841.9,1841.7,6.87076963]
[1746673381341,0.30467223,1841.9,1841.7,6.8706433]
[1746673381541,10.12,1842.4,1842.0,6.25799143]
[1746673381774,5.42727886,1842.6,1842.3,0.8293]
[1746673382154,5.42745228,1842.5,1842.3,0.8293]
[1746673382383,0.3044196,1842.4,1842.3,0.8293]
[1746673382988,0.3044196,1842.4,1842.3,6.25729761]
[1746673383186,0.3044196,1842.4,1842.3,0.8293]
[1746673383489,10.12,1842.9,1842.4,5.42746524]
[1746673383651,5.42611711,1843.0,1842.5,6.24262305]
[1746673383845,11.12779197,1843.1,1842.5,6.29688986]
[1746673384280,5.73008945,1843.0,1842.5,6.29688986]
[1746673384483,5.73008945,1843.0,1842.5,11.72410687]
[1746673384784,5.42624248,1842.9,1842.5,6.24262305]
[1746673384991,0.30393485,1842.8,1842.5,6.24262305]
[1746673385284,0.30393485,1842.8,1842.5,0.8155]
[1746673385485,5.73067532,1842.8,1842.5,0.8155]
[1746673385986,5.42674047,1842.8,1842.5,0.8155]
[1746673386482,5.42670602,1842.8,1842.5,0.8155]
[1746673386786,5.42688038,1842.7,1842.5,0.8155]
[1746673386969,5.42725941,1842.6,1842.3,0.7622]
[1746673387881,5.42725941,1842.6,1842.2,5.4281633]
[1746673387882,5.42831913,1842.2,1841.8,5.4293295]
[1746673388090,5.42831913,1842.2,1841.7,6.1918112]
[1746673388091,5.42849377,1842.2,1841.7,6.1918112]
[1746673388388,5.42849377,1842.2,1841.8,0.61918112]
[1746673388587,5.42861355,1842.1,1841.7,6.1918112]
[1746673388790,5.42861355,1842.1,1841.7,6.19196125]
[1746673389084,5.42899047,1842.0,1841.7,0.7622]
[1746673389457,5.42872505,1842.1,1841.7,6.19195454]
[1746673389659,5.42872505,1842.1,1841.7,0.7622]
[1746673389991,5.42898804,1842.0,1841.7,0.7622]
[1746673390293,5.42876046,1842.1,1841.7,0.7622]
[1746673390586,5.4289506,1842.0,1841.7,0.7622]
[1746673391784,6.51447363,1842.1,1841.7,6.19189587]
[1746673392201,5.42847632,1842.2,1841.8,5.42935398]
[1746673392382,0.55,1842.5,1841.9,0.8123]
[1746673392578,5.42820557,1842.3,1841.9,0.8123]
[1746673392755,5.42848126,1842.2,1841.9,0.8123]
[1746673392955,5.42851445,1842.2,1841.9,0.8123]
[1746673393265,5.42851445,1842.2,1841.9,1.4364646]
[1746673393266,5.42835113,1842.2,1841.9,1.4364646]
[1746673393462,5.42835113,1842.2,1841.9,0.8123]
[1746673395691,5.42787749,1842.4,1841.9,0.86658365]
[1746673395893,5.42757925,1842.5,1842.1,5.42842629]
[1746673396068,5.42725708,1842.6,1842.2,6.23189037]
[1746673396278,7.11178343,1843.0,1842.3,0.62318904]
[1746673396606,7.11178343,1843.0,1842.2,6.23189037]
[1746673396607,5.42721675,1842.6,1842.2,6.23199363]
[1746673396809,5.92752085,1842.5,1842.2,0.8038]
[1746673397300,0.5,1842.5,1842.2,6.23208867]
[1746673398067,0.5,1842.5,1842.3,5.42799587]
[1746673398476,0.5,1842.5,1842.4,5.42770299]
[1746673398679,0.5,1842.5,1842.4,1.09099711]
[1746673399609,5.92751207,1842.5,1842.2,0.8038]
[1746673399900,5.92752983,1842.5,1842.2,0.8038]
[1746673400282,5.42799761,1842.3,1842.2,0.8038]
[1746673400506,5.92756332,1842.5,1842.2,0.8038]
[1746673400705,5.42787066,1842.4,1842.2,0.8038]
[1746673401140,5.42799761,1842.3,1842.2,0.8038]
[1746673401280,5.42788062,1842.4,1842.2,0.8038]
[1746673401622,5.42799761,1842.3,1842.2,0.8038]
[1746673401830,0.30412144,1842.3,1842.2,0.8038]
[1746673403193,5.73211905,1842.3,1842.0,0.8309]
[1746673403399,5.4284211,1842.2,1842.0,0.8309]
[1746673403596,5.73231299,1842.3,1842.0,0.8309]
[1746673403829,5.73251787,1842.2,1842.0,0.8309]
[1746673404001,5.42864039,1842.1,1841.8,6.5289]
[1746673404201,5.42864039,1842.1,1841.8,7.72474962]
[1746673404620,5.73256265,1842.2,1841.8,13.1541771]
[1746673404823,5.42844121,1842.2,1841.8,13.1541771]
[1746673405130,5.42844121,1842.2,1841.8,2.02674962]
[1746673405332,8.42790404,1842.4,1841.9,5.48334724]
[1746673405502,0.30418839,1842.3,1842.1,0.8309]
[1746673405697,5.42829225,1842.2,1841.9,0.8309]
[1746673406104,0.30418839,1842.3,1841.9,6.31417943]
[1746673406284,0.30418839,1842.2,1842.0,5.42885336]
[1746673406623,0.30418839,1842.2,1842.0,0.63140371]
[1746673406792,0.80418839,1842.2,1842.0,0.63140371]
[1746673407299,5.42850354,1842.2,1842.0,0.63140371]
[1746673407494,5.42850354,1842.2,1841.9,0.8309]
[1746673408218,5.42818752,1842.3,1841.9,0.8309]
[1746673408428,5.42833945,1842.2,1841.9,0.8309]
[1746673408643,5.42944559,1841.9,1841.7,0.7781]
[1746673408847,3.0,1842.4,1841.7,0.7781]
[1746673409009,5.4281192,1842.3,1841.9,5.42905638]
[1746673409208,5.4281192,1842.3,1841.9,7.29833179]
[1746673409519,5.4281192,1842.3,1842.0,5.42885527]
[1746673409830,0.30435175,1842.2,1842.0,5.42885527]
[1746673410395,0.30435175,1842.2,1842.1,5.42858693]
[1746673410595,11.12464751,1842.5,1842.1,6.21988693]
[1746673410796,11.12464751,1842.5,1842.1,7.38474819]
[1746673411309,5.42774484,1842.4,1842.1,1.95616126]
[1746673411629,5.42774484,1842.4,1842.1,7.38472096]
[1746673411799,0.80439215,1842.3,1842.1,7.38472096]
[1746673412297,0.80439215,1842.3,1842.1,7.37172096]
[1746673412825,0.5,1842.3,1842.1,7.42583368]
[1746673413032,0.5,1842.3,1842.1,1.94316126]
[1746673413334,0.5,1842.3,1842.1,12.79994112]
[1746673413631,0.5,1842.3,1842.2,6.76256442]
[1746673413941,5.697,1842.8,1842.2,1.33427217]
[1746673414097,5.42632009,1842.9,1842.5,5.42735303]
[1746673414441,5.42654853,1842.8,1842.4,5.42751622]
[1746673414596,5.73093257,1842.8,1842.4,5.42751622]
[1746673414797,5.42684051,1842.7,1842.3,5.42778933]
[1746673414992,5.73107567,1842.8,1842.4,0.54277893]
[1746673415327,5.73107567,1842.8,1842.4,6.74183827]
[1746673415527,0.30438404,1842.7,1842.4,6.74183827]
[1746673415971,0.30438404,1842.7,1842.4,6.74185224]
[1746673416763,0.30438404,1842.7,1842.4,1.31417893]
[1746673416976,0.5,1842.6,1842.4,0.7714]
[1746673417172,0.80438404,1842.6,1842.4,0.7714]
[1746673417665,0.5,1842.6,1842.4,0.7714]
[1746673418068,0.5,1842.6,1842.5,5.42740841]
[1746673418699,0.5,1842.6,1842.5,5.48167609]
[1746673418904,5.42598452,1843.0,1842.6,5.42689646]
[1746673419068,5.42598452,1843.0,1842.7,0.05426265]
[1746673419483,0.30430901,1842.9,1842.7,0.05426265]
[1746673419774,0.30430901,1842.8,1842.7,0.05426265]
[1746673419962,0.30430901,1842.8,1842.7,5.48108199]
[1746673420486,0.30430901,1842.8,1842.7,0.05426265]
[1746673420786,5.42594418,1843.0,1842.7,0.05426265]
[1746673421411,30.68383329,1843.1,1842.7,0.05426265]
[1746673421562,0.30427313,1843.0,1842.8,6.17682403]
[1746673421893,0.30427313,1843.0,1842.9,6.17653039]
[1746673422452,5.42507714,1843.3,1842.9,6.17653039]
[1746673422988,15.54499715,1843.4,1843.0,5.42586767]
[1746673423190,5.42499715,1843.4,1843.0,5.42586767]
[1746673423393,5.72905209,1843.3,1842.9,6.17644528]
[1746673423572,0.30385188,1843.3,1843.0,5.4259141]
[1746673423777,0.30385188,1843.3,1843.1,5.47970021]
[1746673423990,0.30385188,1843.3,1843.2,6.17564722]
[1746673424399,5.42368144,1843.8,1843.4,5.42474343]
[1746673424595,0.54236814,1843.7,1843.4,5.47898515]
[1746673424862,0.54236814,1843.7,1843.4,5.42474343]
[1746673425705,5.4234468,1843.9,1843.5,0.7574]
[1746673426006,5.4235915,1843.8,1843.5,0.7574]
[1746673426608,5.42348976,1843.9,1843.5,0.7574]
[1746673426913,11.11517905,1844.0,1843.6,0.05423649]
[1746673427061,11.11517905,1844.0,1843.6,5.42405381]
[1746673427263,5.42289078,1844.1,1843.6,5.42394202]
[1746673427565,5.42300727,1844.0,1843.6,5.42394202]
[1746673427976,5.42329468,1843.9,1843.5,6.1817186]
[1746673428191,5.42317874,1844.0,1843.5,12.76657489]
[1746673428498,5.42317874,1844.0,1843.7,0.8301]
[1746673429793,5.42261626,1844.2,1843.7,0.8301]
[1746673429971,5.42261626,1844.2,1843.8,5.47770065]
[1746673430167,5.42261626,1844.2,1843.8,5.42346971]
[1746673430879,0.40592908,1844.6,1844.0,5.42295616]
[1746673431103,10.84286149,1844.6,1844.2,0.8301]
[1746673431404,5.42169272,1844.5,1844.2,0.8301]
[1746673431700,5.42192073,1844.4,1844.2,0.8301]
[1746673433077,5.42162811,1844.5,1844.2,0.8301]
[1746673433294,5.42182077,1844.4,1844.2,0.8301]
[1746673435417,5.42211137,1844.3,1844.2,0.8301]
[1746673436281,5.42240641,1844.2,1844.0,0.8143]
[1746673436616,5.42228005,1844.3,1844.0,0.86852348]
[1746673437000,5.42228005,1844.3,1844.0,0.8143]
[1746673437377,5.42194667,1844.4,1844.0,0.86852277]
[1746673437707,5.4225186,1844.2,1844.0,0.8143]
[1746673438700,10.84471337,1844.3,1844.0,0.8143]
[1746673439019,5.42247444,1844.2,1844.0,0.8143]
[1746673439219,5.42269941,1844.1,1844.0,0.8143]
[1746673439422,5.42247444,1844.2,1844.0,0.8143]
[1746673440223,5.42193254,1844.4,1844.0,0.8143]
[1746673440412,5.42193254,1844.4,1844.0,0.86852379]
[1746673440612,10.84398563,1844.4,1844.0,6.29140981]
[1746673440927,5.42216001,1844.3,1844.0,0.86852379]
[1746673441123,5.42269941,1844.1,1844.0,0.8143]
[1746673441424,5.42282525,1844.1,1843.8,6.4863]
[1746673441724,5.42258362,1844.2,1843.8,6.22186313]
[1746673442049,5.99396324,1844.5,1844.1,5.42258912]
[1746673442050,5.42165091,1844.5,1844.1,5.42258912]
[1746673442323,0.3,1844.6,1844.0,0.8201]
[1746673442488,5.42198182,1844.4,1844.0,0.8201]
[1746673442688,5.42195633,1844.4,1844.0,6.24301729]
[1746673443419,5.42182678,1844.4,1844.0,6.24290259]
[1746673443603,5.42169864,1844.5,1844.0,6.24287198]
[1746673443809,5.42169864,1844.5,1844.1,5.42266963]
[1746673444002,5.42106773,1844.7,1844.3,5.42209519]
[1746673444387,5.42132884,1844.6,1844.2,6.23293972]
[1746673444592,5.42108827,1844.7,1844.3,6.23270995]
[1746673444828,5.4212852,1844.6,1844.3,0.8107]
[1746673445122,5.42111966,1844.7,1844.3,0.8107]
[1746673445437,5.42111966,1844.7,1844.3,6.85597154]
[1746673445438,5.42103787,1844.7,1844.3,6.85597154]
[1746673445603,10.84221992,1844.7,1844.3,6.85597154]
[1746673445804,5.42103787,1844.7,1844.3,1.43399483]
[1746673446011,5.42134448,1844.6,1844.3,1.43399483]
[1746673446325,5.42164639,1844.5,1844.3,0.8107]
[1746673447532,5.42140353,1844.6,1844.3,0.8107]
[1746673447832,5.4212256,1844.7,1844.4,0.05421607]
[1746673448126,5.42119377,1844.7,1844.4,0.05421607]
[1746673448547,5.42080002,1844.8,1844.5,0.7921]
[1746673448952,5.42101044,1844.7,1844.5,0.7921]
[1746673449343,5.4208071,1844.8,1844.5,0.7921]
[1746673449925,5.42122953,1844.6,1844.5,0.7921]
[1746673450461,5.42112165,1844.7,1844.5,0.7921]
[1746673450648,5.42122953,1844.6,1844.2,5.42220871]
[1746673450956,5.42122953,1844.6,1844.3,0.7921]
[1746673451454,5.42129684,1844.6,1844.3,0.7921]
[1746673451664,5.42142655,1844.6,1844.3,0.7921]
[1746673451832,5.42153875,1844.5,1844.3,0.7921]
[1746673452262,5.42226605,1844.3,1844.1,5.683]
[1746673453032,5.42201301,1844.4,1844.1,5.73722094]
[1746673453253,5.42213894,1844.3,1844.1,5.683]
[1746673453454,5.42200732,1844.4,1844.1,5.73722094]
[1746673453649,5.42162188,1844.5,1844.1,11.15980434]
[1746673453854,5.42162188,1844.5,1844.2,0.822]
[1746673454858,5.42135926,1844.6,1844.2,6.24436517]
[1746673455063,5.42110362,1844.7,1844.3,0.8155]
[1746673455264,5.42110362,1844.7,1844.3,6.23759344]
[1746673455563,5.42110362,1844.7,1844.3,7.40357477]
[1746673455854,5.42110362,1844.7,1844.4,0.05421096]
[1746673456056,0.3038598,1844.6,1844.4,0.05421096]
[1746673456729,0.3038598,1844.6,1844.5,0.828]
[1746673457060,5.42076808,1844.8,1844.5,0.828]
[1746673457247,5.42018752,1845.0,1844.5,6.8745012]
[1746673457445,5.420301,1845.0,1844.6,0.05420716]
[1746673457625,5.683,1845.1,1844.7,6.24892048]
[1746673457626,0.30391265,1844.9,1844.7,6.24892048]
[1746673457828,0.30391265,1844.9,1844.7,6.30312253]
[1746673458164,0.30391265,1844.9,1844.7,1.97464956]
[1746673458331,0.30391265,1844.9,1844.7,0.88220205]
[1746673458530,0.30391265,1844.9,1844.7,6.30296132]
[1746673458741,5.41922843,1845.3,1844.7,0.88220205]
[1746673458943,5.41922843,1845.3,1844.8,5.42042929]
[1746673459267,5.41940502,1845.3,1845.0,0.828]
[1746673459432,0.30381588,1845.2,1845.0,0.828]
[1746673460440,5.41940502,1845.3,1845.0,0.828]
[1746673461382,5.41875493,1845.5,1845.1,0.85389284]
[1746673461544,15.53728504,1846.0,1845.1,0.85389284]
[1746673461545,5.41849499,1845.6,1845.2,5.41944704]
[1746673461752,5.4181588,1845.7,1845.4,0.7689]
[1746673462076,5.41840362,1845.6,1845.4,0.7689]
[1746673463995,5.41946672,1845.2,1845.1,0.8208]
[1746673464168,5.41978187,1845.1,1844.9,0.822]
[1746673464367,5.41936068,1845.3,1844.9,6.24234779]
[1746673464681,5.41936068,1845.3,1845.0,0.05419482]
[1746673464992,5.41936068,1845.3,1844.9,6.24234779]
[1746673465291,5.41936068,1845.3,1844.9,7.97682415]
[1746673465859,5.41951672,1845.2,1844.9,2.55647636]
[1746673466055,5.41936068,1845.3,1844.9,6.24230983]
[1746673466056,5.4193328,1845.3,1844.9,6.24230983]
[1746673466690,5.41949842,1845.2,1844.9,0.822]
[1746673467284,5.41962993,1845.2,1844.9,0.822]
[1746673468867,10.66184036,1845.6,1844.9,0.822]
[1746673469075,5.41907591,1845.4,1845.0,5.42002741]
[1746673469379,5.4187412,1845.5,1845.1,6.21892822]
[1746673469581,5.41841034,1845.6,1845.2,5.47362814]
[1746673469786,5.41841034,1845.6,1845.3,0.7993]
[1746673471097,10.83694668,1845.6,1845.3,0.7993]
[1746673471278,5.41841034,1845.6,1845.3,0.7993]
[1746673472199,5.41841034,1845.6,1845.3,0.85348469]
[1746673472395,5.41691177,1846.1,1845.4,6.2456596]
[1746673472617,5.41767686,1845.9,1845.4,11.61012898]
[1746673472759,5.41767686,1845.9,1845.5,6.19127769]
[1746673473177,10.83534057,1845.9,1845.5,6.19127769]
[1746673473381,5.41771779,1845.8,1845.5,1.93379318]
[1746673473786,5.41757088,1845.9,1845.5,7.35237478]
[1746673474173,5.41761868,1845.9,1845.5,7.35237615]
[1746673474568,5.41761868,1845.9,1845.6,0.82037562]
[1746673475968,10.83527605,1845.9,1845.6,0.82037562]
[1746673476301,5.41761868,1845.9,1845.6,0.82037562]
[1746673476505,11.09659114,1846.2,1845.6,0.7662]
[1746673476717,5.41762968,1845.9,1845.6,0.7662]
[1746673477002,5.41774306,1845.8,1845.6,0.82037565]
[1746673477305,5.41728369,1846.0,1845.6,6.23861856]
[1746673477502,5.41743244,1845.9,1845.6,0.82037565]
[1746673477800,5.41728369,1846.0,1845.6,6.23863733]
[1746673478006,5.41728369,1846.0,1845.7,0.62386373]
[1746673478312,5.41728369,1846.0,1845.8,0.7816]
[1746673479471,5.41662851,1846.2,1845.8,6.19920465]
[1746673479669,5.41736392,1846.0,1845.8,0.7816]
[1746673479883,5.41730183,1846.0,1845.8,0.7816]
[1746673480102,5.41698622,1846.1,1845.8,0.7816]
[1746673480307,5.41660301,1846.2,1845.8,0.7816]
[1746673480308,10.83340753,1846.2,1845.8,1.97485208]
[1746673480493,10.83339807,1846.2,1845.8,7.39249404]
[1746673480812,5.41699694,1846.1,1845.8,1.97485208]
[1746673481113,5.41629193,1846.3,1845.8,0.7816]
[1746673481271,5.41739739,1846.0,1845.8,0.7816]
[1746673481610,5.41741156,1845.9,1845.8,0.7816]
[1746673481978,5.41723939,1846.0,1845.8,0.7816]
[1746673483116,10.83464837,1846.0,1845.8,0.7816]
[1746673483437,5.41723939,1846.0,1845.8,0.7816]
[1746673483939,10.83463417,1846.0,1845.8,0.7816]
[1746673484330,5.41723939,1846.0,1845.8,0.7816]
[1746673484632,5.41741156,1845.9,1845.8,0.7816]
[1746673484842,5.41787139,1845.8,1845.6,0.8156]
[1746673485136,5.41777946,1845.8,1845.5,0.8156]
[1746673486341,5.41805742,1845.7,1845.5,0.8156]
[1746673487246,5.41714631,1846.0,1845.5,0.8156]
[1746673487423,5.41822884,1845.7,1845.5,0.8156]
[1746673489148,5.41829215,1845.6,1845.5,0.8156]
[1746673489951,10.8364084,1845.7,1845.5,0.8156]
[1746673490453,5.41829215,1845.6,1845.5,0.8156]
[1746673491148,5.41813721,1845.7,1845.5,0.8156]
[1746673492032,10.8363837,1845.7,1845.5,0.8156]
[1746673492240,5.41741156,1845.9,1845.3,1.40977781]
[1746673492427,5.41741156,1845.9,1844.9,3.0]
[1746673492428,5.41799859,1845.7,1845.0,0.7651]
[1746673492627,10.83767352,1845.5,1845.1,11.09368333]
[1746673493058,5.41890218,1845.4,1845.1,5.674]
[1746673494225,3.0,1845.8,1845.0,6.4391]
[1746673494426,5.41893723,1845.4,1845.0,11.8589758]
[1746673494746,5.41919923,1845.3,1845.1,1.18589758]
[1746673495258,5.41901261,1845.4,1845.1,1.18589758]
[1746673495557,5.41875948,1845.5,1845.2,0.8114]
[1746673495957,0.30389649,1845.4,1845.3,2.67574181]
[1746673496252,0.30389649,1845.4,1845.3,8.09491484]
[1746673496445,0.30389649,1845.4,1845.3,7.0942533]
[1746673496641,5.41831274,1845.6,1845.3,7.0942533]
[1746673496953,5.41818981,1845.7,1845.3,7.09424537]
[1746673497123,0.30393988,1845.6,1845.3,7.09424537]
[1746673497460,0.30393988,1845.6,1845.4,0.70942454]
[1746673497626,0.30393988,1845.6,1845.5,5.47276796]
[1746673497821,0.30393988,1845.6,1845.5,6.27106796]
[1746673498150,5.41755449,1845.9,1845.5,6.27106796]
[1746673498473,5.41755449,1845.9,1845.5,8.08122098]
[1746673498637,5.41771396,1845.8,1845.6,0.8081221]
[1746673498836,5.72183197,1845.8,1845.5,0.7983]
[1746673499569,5.72183197,1845.8,1845.4,1.50772454]
[1746673499570,5.41829215,1845.6,1845.4,1.50772454]
[1746673500068,5.72229397,1845.7,1845.4,1.50772454]
[1746673500732,0.30411801,1845.6,1845.4,1.50772454]
[1746673501034,0.30411801,1845.6,1845.5,5.47276737]
[1746673501229,0.30411801,1845.6,1845.5,9.27795534]
[1746673501436,0.30411801,1845.6,1845.5,9.2779508]
[1746673501678,0.30411801,1846.1,1845.8,5.41757701]
[1746673501877,0.30411801,1846.1,1845.9,6.27235593]
[1746673502057,0.30411801,1846.1,1846.0,5.41711809]
[1746673502234,0.30411801,1846.1,1846.0,7.44122838]
[1746673502637,0.30411801,1846.3,1846.0,7.38706549]
[1746673502836,0.30411801,1846.3,1846.1,0.05416274]
[1746673503032,0.30411801,1846.3,1846.2,5.41653125]
[1746673503264,5.41547002,1846.6,1846.2,6.21343125]
[1746673503772,0.61437316,1847.1,1846.2,6.21343125]
[1746673503773,0.4346328,1847.2,1846.4,0.7969]
[1746673504091,5.41420586,1847.0,1846.6,0.7969]
[1746673504379,5.41430734,1847.0,1846.6,0.7969]
[1746673504581,5.41431361,1847.0,1846.6,0.7969]
[1746673504755,5.71770102,1847.1,1846.6,0.7969]
[1746673504756,0.30374992,1847.1,1846.6,6.21200947]
[1746673504946,0.30374992,1847.0,1846.7,6.09033649]
[1746673505481,0.30374992,1847.0,1846.7,6.09025481]
[1746673505638,0.30374992,1847.0,1846.7,0.62120095]
[1746673505993,0.30374992,1847.0,1846.6,6.21211185]
[1746673506143,0.30374992,1847.0,1846.6,6.21204063]
[1746673506673,5.41406139,1847.1,1846.6,0.7969]
[1746673506883,5.41421539,1847.0,1846.6,0.7969]
[1746673507062,5.41421539,1847.0,1846.6,6.21220892]
[1746673507265,5.41421539,1847.0,1846.6,7.94237371]
[1746673507448,5.41459563,1846.9,1846.6,2.52706479]
[1746673507646,5.41433394,1847.0,1846.6,0.7969]
[1746673507844,5.41405657,1847.1,1846.6,0.7969]
[1746673508178,5.41405657,1847.1,1846.6,6.21210455]
[1746673508468,5.41405657,1847.1,1846.7,5.46918948]
[1746673508874,5.41405657,1847.1,1846.7,5.46915599]
[1746673509075,5.84837737,1847.2,1846.8,0.5469156]
[1746673509244,5.41394637,1847.1,1846.7,5.46907124]
[1746673509442,5.41394637,1847.1,1846.6,6.2121]
[1746673510077,5.41394637,1847.1,1846.7,5.41504488]
[1746673510278,5.41430574,1847.0,1846.6,6.21209497]
[1746673510475,5.41430574,1847.0,1846.7,0.6212095]
[1746673510971,5.41394637,1847.1,1846.7,6.0360999]
[1746673511177,5.84838686,1847.2,1846.8,0.7888]
[1746673511472,5.84838686,1847.2,1846.9,0.05413891]
[1746673512054,5.41413467,1847.1,1846.9,0.05413891]
[1746673512258,0.4346328,1847.2,1846.8,0.7888]
[1746673512445,5.4140067,1847.1,1846.8,0.7888]
[1746673513558,5.84838515,1847.2,1846.8,1.46332369]
[1746673514188,0.4346328,1847.2,1846.9,5.414363]
[1746673514700,0.4346328,1847.2,1847.0,5.4140904]
[1746673514859,0.4346328,1847.2,1847.1,0.7698]
[1746673515887,0.4346328,1847.2,1847.1,6.23782176]
[1746673516091,0.4346328,1847.2,1847.1,7.40300267]
[1746673516287,0.4346328,1847.2,1847.1,1.98911063]
[1746673516491,0.4346328,1847.2,1847.1,1.98911116]
[1746673516791,0.4346328,1847.2,1847.1,7.34887577]
[1746673518686,0.4346328,1847.2,1847.1,1.93498373]
[1746673519088,0.4346328,1847.2,1847.1,7.34887577]
[1746673519266,0.4346328,1847.2,1847.1,1.93498373]
[1746673523527,0.4346328,1847.2,1847.1,7.34887577]
[1746673523791,0.4346328,1847.2,1847.1,18.29365638]
[1746673525404,0.4346328,1847.2,1847.1,13.48767577]
[1746673525709,0.4346328,1847.2,1847.1,15.29365638]
[1746673526573,0.4346328,1847.2,1847.1,18.29365638]
[1746673527211,0.4346328,1847.2,1847.1,18.84365638]
[1746673528713,0.4346328,1847.2,1847.1,19.33887731]
[1746673531413,0.4346328,1847.2,1847.1,19.64526361]
[1746673538994,0.00846413,1847.6,1847.5,7.9841005]
[1746673539192,0.00846413,1847.6,1847.5,15.23700332]
[1746673542028,0.00846413,1847.6,1847.5,15.7339746]
[1746673544195,0.00846413,1847.6,1847.5,16.13229707]
[1746673546710,0.00846413,1847.6,1847.5,9.55585471]
[1746673547032,0.00846413,1847.6,1847.5,9.05888343]
[1746673547336,0.00846413,1847.6,1847.5,14.47160332]
[1746673550034,0.00846413,1847.6,1847.5,12.66562271]
[1746673550438,0.00846413,1847.6,1847.5,7.25290282]
[1746673551073,0.00846413,1847.6,1847.5,5.91320311]
[1746673551208,0.00846413,1847.6,1847.5,11.325923]
[1746673551942,0.00846413,1847.6,1847.5,5.91320311]
[1746673552742,0.3124849,1847.6,1847.5,5.91320311]
[1746673552940,5.72491183,1847.6,1847.5,0.25020311]
[1746673553239,6.47800107,1847.6,1847.5,0.25020311]
[1746673553440,1.06557414,1847.6,1847.0,3.0541336]
[1746673553604,0.3124849,1847.6,1847.5,0.21268061]
[1746673553801,0.3124849,1847.6,1847.2,8.41344413]
[1746673554109,5.41389204,1847.1,1847.0,0.49893287]
[1746673554328,0.30402077,1847.1,1846.7,5.41483183]
[1746673554625,0.30402077,1847.1,1847.0,5.41418516]
[1746673555322,5.41325114,1847.4,1847.0,5.41418516]
[1746673555524,5.41342853,1847.3,1846.9,5.41436783]
[1746673555745,5.41342853,1847.3,1846.8,5.95606517]
[1746673556149,5.4131693,1847.4,1846.8,5.95603582]
[1746673556315,5.41342908,1847.3,1846.9,5.41442566]
[1746673556643,10.82701839,1847.3,1846.8,5.95608437]
[1746673556952,5.41391809,1847.1,1846.8,0.54148318]
[1746673557133,5.41368649,1847.2,1846.8,5.95623487]
[1746673557511,5.41368649,1847.2,1846.8,0.54148318]
[1746673557712,5.41368649,1847.2,1846.8,5.9562247]
[1746673558112,5.41349003,1847.3,1846.9,0.59562247]
[1746673558413,5.41349003,1847.3,1846.8,5.95608177]
[1746673558913,5.41349003,1847.3,1846.8,11.4247693]
[1746673559122,0.30349554,1847.2,1847.0,5.41411192]
[1746673560049,5.41315969,1847.4,1847.0,5.41411192]
[1746673560955,0.30335968,1847.3,1846.7,5.657]
[1746673561249,5.41403235,1847.1,1846.7,11.71648918]
[1746673561547,5.41403235,1847.1,1846.7,17.13121076]
[1746673561767,5.41403235,1847.1,1846.7,11.71636192]
[1746673562058,5.41403235,1847.1,1846.7,11.71652867]
[1746673562445,5.41403235,1847.1,1846.7,17.13138859]
[1746673562861,5.41403235,1847.1,1846.7,11.71638992]
[1746673563046,5.41403235,1847.1,1846.7,17.13122091]
[1746673563571,5.41317928,1847.4,1847.0,5.41415427]
[1746673563733,10.82647174,1847.4,1847.0,5.41415427]
[1746673563929,5.71628273,1847.3,1846.9,5.41428927]